Cogmind - Beta 9.1 @@@ ROGUE MODE // 2019.10.31 @ 14:24:51 // Halloween2019/Abominations Player: Pimski Result: Destroyed by Lesser Abomination with Small Laser Performance ------------- Evolutions (0) 0 Regions Visited (1) 200 Robots Destroyed (11) 55 Value Destroyed (562) 562 Prototype IDs (0) 0 Alien Tech Used (0) 0 Bonus (0) 0 TOTAL SCORE: 817 Bonus ------- None Cogmind --------- Core Integrity 0/250 Matter 296/300 Energy 100/100 System Corruption 9% Temperature Cool (6) Location -10/Materials Parts ------- Power (1) Propulsion (2) Utility (2) Weapon (2) Light Assault Rifle Inventory (4) Ion Engine Aluminum Leg Compact Wheel Hacking Suite Peak State ------------ Power Ion Engine Propulsion Light Treads Light Treads Utility Small Storage Unit Utility Shielding Weapon Small Laser Assault Rifle Inventory Ion Engine Aluminum Leg Compact Wheel Hacking Suite [Rating: 7] Favorites ----------- Power Ion Engine Engine Ion Engine Propulsion Light Treads Treads Light Treads Leg Aluminum Leg Utility Small Storage Unit Storage Small Storage Unit Protection Utility Shielding Weapon Assault Rifle Energy Gun Small Laser Ballistic Gun Assault Rifle Build | -11 -10 ------- Run | Scr Mat Slots Evolved . | . . Power . | . . Propulsion . | . . Utility . | . . Weapon . | . . Parts Attached 9 | . 9 Power 1 | . 1 Engine 1 | . 1 Core . | . . Reactor . | . . Propulsion 3 | . 3 Treads 3 | . 3 Leg . | . . Wheel . | . . Hover . | . . Flight . | . . Utility 1 | . 1 Device . | . . Storage . | . . Processor . | . . Hackware . | . . Protection 1 | . 1 Artifact . | . . Weapon 4 | . 4 Energy Gun 3 | . 3 Energy Cannon . | . . Ballistic Gun 1 | . 1 Ballistic Cannon . | . . Launcher . | . . Special Weapon . | . . Impact Weapon . | . . Slashing Weapon . | . . Piercing Weapon . | . . Special Melee Weapon . | . . Unidentified Prototypes . | . . Parts Lost 7 | . 7 Power 1 | . 1 Propulsion 3 | . 3 Utility . | . . Weapon 3 | . 3 Highest Loss Streak 3 | . 3 Average Slot Usage (%) 83 | . 83 Engine 12 | . 12 Treads 19 | . 19 Leg 7 | . 7 Storage 13 | . 13 Protection 3 | . 3 Energy Gun 8 | . 8 Ballistic Gun 18 | . 18 Naked Turns . | . . Heaviest Build 13 | 10 13 Greatest Support 40 | 20 40 Greatest Overweight (x) 1 | . 1 Average Overweight (x) . | . . Largest Inventory Capacity 6 | 6 6 Average Capacity 5 | 6 5 Most Carried 6 | 6 6 Average Carried 5 | 6 5 Final Capacity 6 | 6 4 Final Carried 6 | 6 4 Class Distribution -------------------- 100% | Mutant Dominant Class ---------------- Mutant | -10/Materials Resources | -11 -10 ----------- Run | Scr Mat Matter Collected 508 | 220 288 Remotely . | . . Salvage Created 496 | 84 412 Parts 50 | 2 48 Haulers Intercepted . | . . Recyclers Shooed . | . . Parts Field Recycled . | . . Retrieved Matter . | . . Parts Self-Destructed . | . . Prevented . | . . Kills | -11 -10 ------- Run | Scr Mat Combat Hostiles Destroyed 9 | . 9 Guns 9 | . 9 Classes Destroyed 3 | 1 2 Recycler 1 | 1 . Operator 1 | . 1 Abomination 9 | . 9 Best Kill Streak 2 | 1 2 Combat Bots Only 2 | . 2 Max Kills in Single Turn 1 | 1 1 Gunslinging . | . . Exploded . | . . Melee . | . . Uniques/NPCs Destroyed . | . . Combat | -11 -10 -------- Run | Scr Mat Damage Taken 1194 | . 1194 Core 254 | . 254 Absorbed by Shields . | . . Core Remaining (%) 100 | 100 . Volleys Fired 77 | 5 72 Largest 2 | 2 2 Hottest 70 | 40 70 Shots Fired 141 | 10 131 Gun 141 | 10 131 Cannon . | . . Launcher . | . . Special . | . . Kinetic 105 | 10 95 Thermal 34 | . 34 Explosive . | . . Electromagnetic 2 | . 2 Robot Hit Streak 15 | 5 15 Robot Miss Streak 12 | 2 12 Penetration Max . | . . Secondary Targets 1 | . 1 Max Gunslinging Chain 1 | . 1 Shots Hit Robots 90 | 7 83 Core Hits 40 | 2 38 Critical Hits . | . . Critical Kills . | . . Critical Parts Destroyed . | . . Melee Attacks . | . . Impact . | . . Slashing . | . . Piercing . | . . Sneak Attacks . | . . Combat Hostiles . | . . Follow-up Attacks . | . . Damage Inflicted 1032 | 68 964 Guns 1005 | 68 937 Cannons . | . . Explosions . | . . Melee . | . . Ramming 27 | . 27 Kinetic 745 | 68 677 Thermal 256 | . 256 Explosive . | . . Electromagnetic 4 | . 4 Impact . | . . Slashing . | . . Piercing . | . . Highest Corruption 9 | . 9 Average Corruption 6 | . 6 Corruption Purged . | . . Effects 18 | . 18 Matter Fused 6 | . 6 Energy Discharges 2 | . 2 Data Loss (minor) 2 | . 2 Data Loss (major) 1 | . 1 Targeting Errors 6 | . 6 Weapon Failures 1 | . 1 Overload Shots . | . . Overflow Damage . | . . Projectiles . | . . Explosions . | . . Melee . | . . Knockbacks . | . . Impact . | . . Kinetic . | . . Secondary . | . . Self-Inflicted Damage 9 | . 9 Shots . | . . Rammed 9 | . 9 Targets Rammed 9 | . 9 Kicked . | . . Crushed . | . . Highest Temperature 420 | . 420 Average Temperature 145 | . 145 Received Heat Transfer 132 | . 132 Effects 1 | . 1 Shutdowns 1 | . 1 Siege Activations . | . . Robots Corrupted . | . . Combat Hostiles . | . . Parts Fried . | . . Impact Corruptions . | . . Robots Melted . | . . Combat Hostiles . | . . Parts Melted . | . . Heat Transferred 144 | . 144 Parts Sabotaged . | . . Parts Stolen . | . . Parts Stripped . | . . Power Chain Reactions . | . . Missiles Intercepted . | . . Alert | -11 -10 ------- Run | Scr Mat Peak Influence 15 | 5 15 Average Influence 3 | 2 3 Maximum Alert Level . | . . Low Security (%) 100 | . . Level 1 . | . . Level 2 . | . . Level 3 . | . . Level 4 . | . . Level 5 . | . . High Security . | . . Max Security . | . . Squads Dispatched 11 | . 11 Investigation 3 | . 3 Extermination . | . . Reinforcement 3 | . 3 Assault 5 | . 5 Garrison . | . . Intercept . | . . Construction Impeded . | . . Haulers Reinforced . | . . Stealth | -11 -10 --------- Run | Scr Mat Distress Signals 6 | . 6 Communications Jammed . | . . Distress Signals . | . . Times Spotted 26 | . 26 Peak Tracking Total 6 | . 6 Tactical Retreats 3 | . 3 Traps | -11 -10 ------- Run | Scr Mat Traps Triggered . | . . Indirectly . | . . Trap Hack Attempts . | . . Triggered . | . . Disarmed . | . . Reprogrammed . | . . Reused . | . . Traps Extracted . | . . Installed . | . . Triggered . | . . Machines | -11 -10 ---------- Run | Scr Mat Machines Disabled . | . . Max in Single Turn . | . . Machines Sabotaged . | . . Garrisons Compromised . | . . Overloaded Fab Kills . | . . Fab Network Shutdowns . | . . Hacking | -11 -10 --------- Run | Scr Mat Machines Accessed 1 | . 1 Terminals 1 | . 1 Fabricators . | . . Repair Stations . | . . Recycling Units . | . . Scanalyzers . | . . Garrison Access . | . . Total Hacks 5 | . 5 Successful 2 | . 2 Failed 3 | . 3 Catastrophic 1 | . 1 Database Lockouts . | . . Manual 4 | . 4 Terminals 5 | . 5 Fabricators . | . . Repair Stations . | . . Recycling Units . | . . Scanalyzers . | . . Garrison Access . | . . Terminal Hacks 1 | . 1 Hauler Manifests 1 | . 1 Fabricator Hacks . | . . Repair Station Hacks . | . . Recycling Unit Hacks . | . . Scanalyzer . | . . Garrison Access Hacks . | . . Unauthorized Hacks 4 | . 4 Terminals 1 | . 1 Botnet 1 | . 1 Fabricators . | . . Repair Stations . | . . Recycling Units . | . . Scanalyzers . | . . Garrison Access . | . . Data Cores Recovered . | . . Used . | . . Hacking Detections 1 | . 1 Full Trace Events . | . . Feedback Events . | . . Feedback Blocked . | . . Robot Schematics Acquired . | . . Robots Built . | . . Matter . | . . Time . | . . Total Robot Build Rating . | . . Part Schematics Acquired . | . . Parts Built . | . . Matter . | . . Time . | . . Total Part Build Rating . | . . Parts Repaired . | . . Time . | . . Parts Recycled . | . . Recycled Matter . | . . Retrieved Matter . | . . Retrieved Components . | . . Parts Scanalyzed . | . . Part Schematics Acquired . | . . Parts Damaged . | . . Bothacking | -11 -10 ------------ Run | Scr Mat Used RIF Installer . | . . Robots Hacked . | . . Non-combat . | . . Combat . | . . Robot Hacks Applied . | . . Relay Couplers Released . | . . Robots Rewired . | . . Allies Hacked . | . . Hacks Repelled . | . . Allies | -11 -10 -------- Run | Scr Mat Total Allies . | . . Largest Group . | . . Highest-Rated Group . | . . Highest-Rated Ally . | . . Total Orders . | . . Ally Attacks . | . . Total Damage . | . . Kills . | . . Allies Corrupted . | . . Allies Melted . | . . Intel | -11 -10 ------- Run | Scr Mat Robot Analysis Total . | . . Derelict Logs Recovered . | . . Drone Launches . | . . Drone Recoveries . | . . Exploration | -11 -10 ------------- Run | Scr Mat Turns Passed 628 | 28 600 Spaces Moved 253 | 12 241 Core 45 | . 45 Treads 124 | . 124 Legs 84 | 12 72 Wheels . | . . Hover . | . . Flight . | . . Fastest Speed 50 | 120 50 Average Speed 127 | 120 127 Slowest Speed 160 | 120 160 Overloaded Moves . | . . Propulsion Burnouts . | . . Robots Hopped . | . . Cave-ins Triggered . | . . Exploration Rate (%) 27 | 3 52 Regions Visited 1 Branch Regions . Pre-discovered Areas . | . . Known Exits Taken . | . . Unknown Exits Taken 1 | 1 . Scrap Searched . | . . Spaces Dug . | . . Terrain Destroyed . | . . Melee . | . . Projectile . | . . AOE . | . . Actions | -11 -10 --------- Run | Scr Mat Total 415 | 16 399 Wait 58 | . 58 Move 251 | 11 240 Hop . | . . Pick Up 5 | . 5 Fast Attach 2 | . 2 Attach 5 | . 5 Detach . | . . Swap 2 | . 2 Drop 6 | . 6 Fire 77 | 5 72 Melee . | . . Ram 7 | . 7 Kick . | . . Crush 2 | . 2 Escape Stasis . | . . Rewire . | . . Trap . | . . Miscellaneous . | . . Route ------- -11/Scrapyard -10/Materials History --------- Turn | Location | Event 15 | -11/Scrapyard | Discovered new exit (range 2) 29 | -11/Scrapyard | Entered Materials 309 | -10/Materials | Build established: Mutant 400 | -10/Materials | Discovered new exit (range 7) 594 | -10/Materials | Core integrity fell below 50% 606 | -10/Materials | Core integrity fell below 20% 628 | -10/Materials | Lost 3 parts (2n1w) 629 | -10/Materials | Destroyed by Lesser Abomination with Small Laser Last Messages --------------- 00583_ Lgt. Treads destroyed. 00585_ Lesser Abomination spits out Seismic Analyzer. 00585_ Lesser Abomination absorbs Terrain Scan Processor. 00586_ Lesser Abomination spits out Com. Wheel. 00586_ Lesser Abomination absorbs Wheel. 00595_ System corrupted: Lgt. Assault Rifle jammed. 00597_ Lgt. Treads destroyed. 00597_ Dropped Sml. Storage Unit. 00598_ Dropped EM Shotgun. 00598_ Slammed into Lesser Abomination. 00607_ Sml. Storage Unit blinks away. 00611_ Disintegrating Anomaly forced to warp away. 00613_ Warp Anomaly forced to warp away. 00614_ System corrupted: Matter fused (-9). 00615_ 62 Matter blinks away. 00617_ Warp Anomaly forced to warp away. 00618_ Forced to warp away. 00620_ Acquired 2 matter. 00620_ Acquired 3 matter. 00628_ Frozen by Ice Anomaly. Map ----- +----------------------------------------------------+ | | | | | | | | | ??????????????????????????????????????????????? | | ??????????????????????????????????????????????? | | ??????????????????????????????????????????????? | | ??????????????????????????????????????????????? | | ??????????????????????????????????????????????? | | ??????????????????????????????????????????????? | | ??????????????????????????????????????????????? | | ??????????????????????????????????????????????? | | ??????????##??????????????????????????????????? | | ????????### ###???????????????????????????????? | | ????????# #######?????? ?????????????????????? | | ???????####"""#;###########???????????????????? | | ???????###" ";; #???????????????????? | | ????????# " ""; # ??????????????????? | | ???????## % ; # ??????????????????? | | ???????## < ; # #?????????????????? | | ???????## ; # #?????????????????? | | ???????## ; # ??????????????????? | | ??????# "# ;; #???????????????????? | | ########### ;;; #??????????#####????? | | # % ; %;#;%;;;######### ? #? ????? | | # =% + %A @ #? T[???? | | # """ #% A # % ????? | | # """"" # A n # % % ""????? | | # """"" ### # ""= # ""????? | | # !"""" #?# # """ # ""????? | | # [ "" [#?# ! # """ " % ""????? | | # =% #?# # """ " [??????? | | ?##########?######## "" " |?????????? | | ?????????????????### #???????????? | | ??????????????????## % #???????????? | | ??????????????????## #???????????? | | ??????????????????## #???????????? | | ??????????????????#; #???????????? | | ?????????????????##;;;;;#######% " """???????? | | ?????????????????# n #??? " ?????? | | ?????????????????#[ % #??? # ???? | | ????????????????#" [ [ #??? # ????? | | ???????????###??## #??? #?#######???? | | ??????????? ???# #??? ?????""""??? | | ??????????? ??##| #??? ??? [ ? | | ??????? "?" #?## #??? T ??? | | ????????""" #??# % #???? ?? % | | ????????? [ #??###+#######???? ####" """"=" | | ?????????? "" #??# " " #???#############%"" % ? | | ?????????? Y" #??# " " #??## """ """ # "" ""? | +----------------------------------------------------+ Best States ------------- Heat Dissipation 25 Energy Generation 10 Energy Capacity 250 Matter Stores 300 Matter Capacity 300 Sight Range 16 Terrain Scan Density 10 Utility Shielding 33 Evasion (%) 50 Recoil Reduction 2 Item Schematics ----------------- None Robot Schematics ------------------ None Fabricated ------------ Nothing Alien Tech Used ----------------- None Achievements -------------- None Challenges ------------ None Game ------ Seed WeaponMagneticDoublenader Manual? 0 Play Time 00:14:55 Cumulative 581.9 hours Start 2019.10.31 @ 14:10:30 End 2019.10.31 @ 14:24:51 Sessions 1 Manual Loads 0 Difficulty Rogue Special Mode Halloween2019/Abominations Game No. 372 Rogue 372 Adventurer 0 Explorer 0 Win Type - Total 97 Types 64/6/7/10/5/1/4 Lore% 96 Gallery% 93 Achievement% 80 Wizard Run 0 Options --------- ASCII 0 Keyboard 0 Movement Numpad Keybinds 0 Fullscreen 2 Font 18/SmallcapsGlow Map View 76x50 Tactical HUD 1 Map Filters NONE Filters NONE Steam 1 RUN: 5f003dad-c303-44b4-9b7b-6c53ce24d5e7